[Event "*** Titled Tuesday 3|2 Blitz"]
[Site "Chess.com"]
[Date "2015.12.01"]
[Round "8"]
[White "wonderfultime"]
[Black "ArnaudovP"]
[Result "1/2-1/2"]
[WhiteElo "2630"]
[BlackElo "2347"]
[TimeControl "180+2"]
[EndTime "18:46:06 PST"]
[Termination "Game drawn by agreement"]

1. d4 {[%clk 0:03:01.9]} 1... Nf6 {[%clk 0:02:59.9]} 2. c4 {[%clk 0:03:01.8]}
2... Nc6 {[%clk 0:02:59.9]} 3. Nf3 {[%clk 0:03:01.5]} 3... e6 {[%clk 0:03:00.7]}
4. Nc3 {[%clk 0:03:01.9]} 4... Bb4 {[%clk 0:03:01.1]} 5. Bg5 {[%clk 0:03:00.6]}
5... h6 {[%clk 0:03:00.9]} 6. Bxf6 {[%clk 0:02:59.2]} 6... Qxf6 {[%clk
0:03:00.9]} 7. e3 {[%clk 0:03:01.1]} 7... d6 {[%clk 0:02:57.7]} 8. Rc1 {[%clk
0:02:51.8]} 8... O-O {[%clk 0:02:52.4]} 9. Be2 {[%clk 0:02:40.4]} 9... e5 {[%clk
0:02:51]} 10. O-O {[%clk 0:02:41.1]} 10... Bxc3 {[%clk 0:02:49.9]} 11. Rxc3
{[%clk 0:02:42]} 11... Bg4 {[%clk 0:02:50.2]} 12. dxe5 {[%clk 0:02:23.6]} 12...
Nxe5 {[%clk 0:02:30.3]} 13. Nd4 {[%clk 0:02:15.8]} 13... Bxe2 {[%clk 0:02:27.7]}
14. Qxe2 {[%clk 0:02:17.7]} 14... c5 {[%clk 0:02:23.9]} 15. Nb5 {[%clk
0:02:18.1]} 15... Qe7 {[%clk 0:01:52.8]} 16. Rc2 {[%clk 0:02:14.3]} 16... a6
{[%clk 0:01:44.4]} 17. Nc3 {[%clk 0:02:15.2]} 17... Rad8 {[%clk 0:01:45.2]} 18.
Rd1 {[%clk 0:02:14.6]} 18... Nc6 {[%clk 0:01:44.3]} 19. Rcd2 {[%clk 0:02:14.7]}
19... Rd7 {[%clk 0:01:42.8]} 20. b3 {[%clk 0:01:52.7]} 20... Qe6 {[%clk
0:01:41]} 21. Qf3 {[%clk 0:01:50.8]} 21... Rfd8 {[%clk 0:01:31.9]} 22. Qg3
{[%clk 0:01:35.6]} 22... Ne5 {[%clk 0:01:26]} 23. h3 {[%clk 0:01:27.1]} 23... b5
{[%clk 0:01:26.5]} 24. cxb5 {[%clk 0:00:48.9]} 24... axb5 {[%clk 0:01:26.5]} 25.
Nxb5 {[%clk 0:00:49.9]} 25... d5 {[%clk 0:01:26.5]} 26. Rc1 {[%clk 0:00:50.7]}
26... d4 {[%clk 0:01:10.6]} 27. exd4 {[%clk 0:00:47]} 27... cxd4 {[%clk
0:01:09.1]} 28. Kh2 {[%clk 0:00:21.1]} 28... d3 {[%clk 0:00:53.2]} 29. f4 {[%clk
0:00:21.8]} 29... Ng6 {[%clk 0:00:53.1]} 30. a4 {[%clk 0:00:17.6]} 30... Qxb3
{[%clk 0:00:50.7]} 31. f5 {[%clk 0:00:19.1]} 31... Nf8 {[%clk 0:00:49.4]} 32. f6
{[%clk 0:00:15.4]} 32... Ng6 {[%clk 0:00:43.7]} 33. fxg7 {[%clk 0:00:16.5]}
33... Qxa4 {[%clk 0:00:43.5]} 34. Nc3 {[%clk 0:00:12.2]} 34... Qa3 {[%clk
0:00:37.1]} 35. Qe1 {[%clk 0:00:13.2]} 35... Qd6+ {[%clk 0:00:32.9]} 36. g3
{[%clk 0:00:12.1]} 36... Re7 {[%clk 0:00:32.4]} 37. Qf2 {[%clk 0:00:11.3]} 37...
Qa3 {[%clk 0:00:30]} 38. Rdd1 {[%clk 0:00:09.1]} 38... Rde8 {[%clk 0:00:26.4]}
39. Kh1 {[%clk 0:00:06]} 39... Qa8+ {[%clk 0:00:23.7]} 40. Qg2 {[%clk
0:00:07.4]} 40... Qa6 {[%clk 0:00:20.6]} 41. Qf3 {[%clk 0:00:05.5]} 41... Re3
{[%clk 0:00:20.2]} 42. Qf2 {[%clk 0:00:05.6]} 42... Qb7+ {[%clk 0:00:19.9]} 43.
Qg2 {[%clk 0:00:06]} 43... Qa6 {[%clk 0:00:20.1]} 44. Nd5 {[%clk 0:00:06.8]}
44... Re2 {[%clk 0:00:19.9]} 45. Qf3 {[%clk 0:00:07.9]} 45... Kxg7 {[%clk
0:00:19.1]} 46. Qxd3 {[%clk 0:00:09]} 46... Qxd3 {[%clk 0:00:17.6]} 47. Rxd3
{[%clk 0:00:10.9]} 47... h5 {[%clk 0:00:16.9]} 48. Rf1 {[%clk 0:00:11.7]} 48...
h4 {[%clk 0:00:17.2]} 49. gxh4 {[%clk 0:00:11.6]} 49... Nxh4 {[%clk 0:00:16.4]}
50. Rg3+ {[%clk 0:00:12.7]} 50... Ng6 {[%clk 0:00:17.3]} 51. Nf4 {[%clk
0:00:13.9]} 51... R2e3 {[%clk 0:00:11.3]} 52. Nh5+ {[%clk 0:00:15.1]} 52... Kh6
{[%clk 0:00:10.7]} 53. Rxe3 {[%clk 0:00:12.2]} 53... Rxe3 {[%clk 0:00:11.3]} 54.
Nf6 {[%clk 0:00:14.1]} 54... Rxh3+ {[%clk 0:00:11.3]} 55. Kg2 {[%clk 0:00:16]}
55... Ra3 {[%clk 0:00:11]} 56. Nd5 {[%clk 0:00:14.6]} 56... Kg7 {[%clk
0:00:11.1]} 57. Re1 {[%clk 0:00:15.6]} 57... f5 {[%clk 0:00:11.1]} 58. Rb1
{[%clk 0:00:16]} 58... Kh6 {[%clk 0:00:11.9]} 59. Rb6 {[%clk 0:00:17]} 59... Kg5
{[%clk 0:00:13.3]} 60. Kf2 {[%clk 0:00:17.7]} 60... Ne5 {[%clk 0:00:12.4]} 61.
Ke2 {[%clk 0:00:16.8]} 61... f4 {[%clk 0:00:13]} 62. Rb5 {[%clk 0:00:15.3]}
62... Ra2+ {[%clk 0:00:13.9]} 63. Kf1 {[%clk 0:00:15.6]} 63... Kf5 {[%clk
0:00:13.6]} 64. Rb3 {[%clk 0:00:10.7]} 64... Kg4 {[%clk 0:00:12.9]} 65. Nf6+
{[%clk 0:00:11.5]} 65... Kg5 {[%clk 0:00:13.3]} 66. Ne4+ {[%clk 0:00:12.1]}
66... Kf5 {[%clk 0:00:14.5]} 67. Nd6+ {[%clk 0:00:13.6]} 67... Kg4 {[%clk
0:00:15.5]} 68. Ne4 {[%clk 0:00:14.9]} 68... Nf3 {[%clk 0:00:16.3]} 69. Nf6+
{[%clk 0:00:15.6]} 69... Kg3 {[%clk 0:00:15.6]} 70. Ne4+ {[%clk 0:00:16.7]}
70... Kg4 {[%clk 0:00:16.6]} 71. Nf6+ {[%clk 0:00:17.5]} 71... Kf5 {[%clk
0:00:14.6]} 72. Rxf3 {[%clk 0:00:18.4]} 72... Kxf6 {[%clk 0:00:15.6]} 73. Rxf4+
{[%clk 0:00:19.9]} 1/2-1/2

[Event "*** Titled Tuesday 3|2 Blitz"]
[Site "Chess.com"]
[Date "2015.12.01"]
[Round "8"]
[White "Hikaru"]
[Black "DanielNaroditsky"]
[Result "1/2-1/2"]
[WhiteElo "2904"]
[BlackElo "2581"]
[TimeControl "180+2"]
[EndTime "18:49:08 PST"]
[Termination "Game drawn by agreement"]

1. b3 {[%clk 0:03:01.9]} 1... d5 {[%clk 0:02:59.1]} 2. Bb2 {[%clk 0:03:03.8]}
2... Bg4 {[%clk 0:03:00]} 3. d4 {[%clk 0:03:04.1]} 3... Nf6 {[%clk 0:03:00]} 4.
Nd2 {[%clk 0:03:05.8]} 4... e6 {[%clk 0:03:00.5]} 5. Ngf3 {[%clk 0:03:07.5]}
5... Nbd7 {[%clk 0:02:59.1]} 6. g3 {[%clk 0:03:08.5]} 6... Bd6 {[%clk
0:02:58.6]} 7. Bg2 {[%clk 0:03:08.2]} 7... c6 {[%clk 0:02:59.3]} 8. O-O {[%clk
0:03:08.9]} 8... O-O {[%clk 0:02:59.1]} 9. Re1 {[%clk 0:03:09.7]} 9... h6 {[%clk
0:02:52.6]} 10. e4 {[%clk 0:03:09.6]} 10... dxe4 {[%clk 0:02:41.3]} 11. Nxe4
{[%clk 0:03:11.5]} 11... Nxe4 {[%clk 0:02:42.2]} 12. Rxe4 {[%clk 0:03:13.4]}
12... Nf6 {[%clk 0:02:42.6]} 13. Re2 {[%clk 0:03:11.1]} 13... Qa5 {[%clk
0:02:39]} 14. h3 {[%clk 0:03:10.5]} 14... Bxf3 {[%clk 0:02:39.4]} 15. Bxf3
{[%clk 0:03:12.4]} 15... Ba3 {[%clk 0:02:36.6]} 16. Re5 {[%clk 0:03:12.8]} 16...
Qb4 {[%clk 0:02:32.5]} 17. c3 {[%clk 0:03:07]} 17... Qe7 {[%clk 0:02:33.3]} 18.
Bxa3 {[%clk 0:03:07.3]} 18... Qxa3 {[%clk 0:02:34.5]} 19. Qc2 {[%clk 0:03:02.4]}
19... a5 {[%clk 0:02:32.5]} 20. Rae1 {[%clk 0:03:02.8]} 20... Qd6 {[%clk
0:02:28.2]} 21. Kg2 {[%clk 0:02:58.2]} 21... Nd7 {[%clk 0:02:25.5]} 22. R5e2
{[%clk 0:02:58.9]} 22... Rfe8 {[%clk 0:02:25.9]} 23. c4 {[%clk 0:02:56.2]} 23...
Nf6 {[%clk 0:02:18]} 24. Rd1 {[%clk 0:02:57.5]} 24... a4 {[%clk 0:02:16.6]} 25.
bxa4 {[%clk 0:02:47.5]} 25... Ra7 {[%clk 0:02:07.9]} 26. Qb3 {[%clk 0:02:37.2]}
26... Rea8 {[%clk 0:02:05.6]} 27. d5 {[%clk 0:02:18]} 27... cxd5 {[%clk
0:02:02.4]} 28. cxd5 {[%clk 0:02:19.9]} 28... e5 {[%clk 0:02:03.9]} 29. Qc3
{[%clk 0:02:16.9]} 29... Nd7 {[%clk 0:01:33.5]} 30. Bg4 {[%clk 0:02:15.3]} 30...
Rxa4 {[%clk 0:01:27.8]} 31. Bxd7 {[%clk 0:02:15.2]} 31... Qxd7 {[%clk
0:01:29.2]} 32. Rxe5 {[%clk 0:02:10]} 32... Ra3 {[%clk 0:01:14.8]} 33. Qd4
{[%clk 0:02:01.3]} 33... Rxa2 {[%clk 0:01:12.5]} 34. d6 {[%clk 0:02:01]} 34...
Qc6+ {[%clk 0:00:59.9]} 35. Kg1 {[%clk 0:02:00.5]} 35... R2a4 {[%clk 0:00:57.9]}
36. Qb2 {[%clk 0:01:16.3]} 36... Ra2 {[%clk 0:00:58]} 37. Qb1 {[%clk 0:01:17.5]}
37... Qf3 {[%clk 0:00:32.9]} 38. Rf5 {[%clk 0:01:18.6]} 38... Qxd1+ {[%clk
0:00:32.2]} 39. Qxd1 {[%clk 0:01:19.1]} 39... Ra1 {[%clk 0:00:33.9]} 40. Qxa1
{[%clk 0:01:18.9]} 40... Rxa1+ {[%clk 0:00:34.4]} 41. Kg2 {[%clk 0:01:20.8]}
41... Rd1 {[%clk 0:00:35.6]} 42. Rb5 {[%clk 0:01:22.3]} 42... Rxd6 {[%clk
0:00:36.6]} 43. Rxb7 {[%clk 0:01:23.8]} 43... g6 {[%clk 0:00:36.9]} 44. g4
{[%clk 0:01:24.2]} 44... Kg7 {[%clk 0:00:37.4]} 45. h4 {[%clk 0:01:25.1]} 45...
h5 {[%clk 0:00:36.1]} 46. gxh5 {[%clk 0:01:25.3]} 46... gxh5 {[%clk 0:00:37.3]}
47. Rb5 {[%clk 0:01:26.9]} 47... Kg6 {[%clk 0:00:37]} 48. Rg5+ {[%clk
0:01:28.5]} 48... Kh6 {[%clk 0:00:38.5]} 49. Rf5 {[%clk 0:01:30.2]} 49... Kg6
{[%clk 0:00:38.5]} 50. Rg5+ {[%clk 0:01:31.5]} 50... Kh6 {[%clk 0:00:40.1]} 51.
Ra5 {[%clk 0:01:33.1]} 51... Rd4 {[%clk 0:00:38.7]} 52. Kh3 {[%clk 0:01:32.8]}
52... Rd3+ {[%clk 0:00:39.3]} 53. Kg2 {[%clk 0:01:33.1]} 53... Rd4 {[%clk
0:00:41]} 54. Ra6+ {[%clk 0:01:33]} 54... Kg7 {[%clk 0:00:41.8]} 55. Kg3 {[%clk
0:01:34.6]} 55... Rg4+ {[%clk 0:00:42.7]} 56. Kh3 {[%clk 0:01:36.1]} 56... Rf4
{[%clk 0:00:44.1]} 57. Ra2 {[%clk 0:01:37.7]} 57... Rf3+ {[%clk 0:00:43.6]} 58.
Kg2 {[%clk 0:01:38.7]} 58... Rf4 {[%clk 0:00:45.1]} 59. Kg3 {[%clk 0:01:40.3]}
59... Rg4+ {[%clk 0:00:46.4]} 60. Kh3 {[%clk 0:01:42]} 60... Rf4 {[%clk
0:00:48.1]} 61. Kg3 {[%clk 0:01:43.1]} 61... Rg4+ {[%clk 0:00:49.3]} 62. Kh3
{[%clk 0:01:44.7]} 62... Rf4 {[%clk 0:00:50.9]} 63. Rb2 {[%clk 0:01:46.2]} 63...
Rf3+ {[%clk 0:00:50.9]} 64. Kg2 {[%clk 0:01:46.7]} 64... Rf4 {[%clk 0:00:52.6]}
65. Kh3 {[%clk 0:01:48.1]} 65... Rg4 {[%clk 0:00:53.9]} 66. f3 {[%clk
0:01:48.5]} 66... Ra4 {[%clk 0:00:54]} 67. Rb5 {[%clk 0:01:49.1]} 67... Kg6
{[%clk 0:00:51.7]} 68. Rg5+ {[%clk 0:01:49.7]} 68... Kh6 {[%clk 0:00:53.2]} 69.
Rf5 {[%clk 0:01:51.3]} 69... Kg6 {[%clk 0:00:54.4]} 70. Rg5+ {[%clk 0:01:53]}
70... Kh6 {[%clk 0:00:56]} 71. Kg3 {[%clk 0:01:54.7]} 71... f6 {[%clk
0:00:55.9]} 72. Rg8 {[%clk 0:01:55.5]} 72... Kh7 {[%clk 0:00:57]} 73. Rb8 {[%clk
0:01:55.3]} 73... Kg6 {[%clk 0:00:55.5]} 74. Rg8+ {[%clk 0:01:56.3]} 74... Kf7
{[%clk 0:00:55]} 75. Rc8 {[%clk 0:01:57.3]} 75... Kg6 {[%clk 0:00:56.3]} 76. Rc1
{[%clk 0:01:57.3]} 76... Rb4 {[%clk 0:00:56.5]} 77. Ra1 {[%clk 0:01:58.1]} 77...
Rc4 {[%clk 0:00:57.8]} 78. Rd1 {[%clk 0:01:59]} 78... Rb4 {[%clk 0:00:58.9]} 79.
Re1 {[%clk 0:02:00.4]} 79... Rc4 {[%clk 0:00:59.9]} 80. Rg1 {[%clk 0:02:01.8]}
80... Kf5 {[%clk 0:00:57.9]} 81. Rd1 {[%clk 0:02:02.5]} 81... Kg6 {[%clk
0:00:58.8]} 82. Ra1 {[%clk 0:02:02]} 82... Rb4 {[%clk 0:00:59.8]} 83. Rc1 {[%clk
0:02:03]} 83... Ra4 {[%clk 0:01:00.9]} 84. Rf1 {[%clk 0:02:03.8]} 84... Rb4
{[%clk 0:01:01.6]} 85. Rh1 {[%clk 0:02:05.4]} 85... Ra4 {[%clk 0:01:02.7]} 86.
Rd1 {[%clk 0:02:06.6]} 86... Rb4 {[%clk 0:01:03.7]} 87. Rc1 {[%clk 0:02:07.6]}
87... Ra4 {[%clk 0:01:04.9]} 88. Rb1 {[%clk 0:02:09.2]} 88... Rc4 {[%clk
0:01:05.8]} 89. Rb5 {[%clk 0:02:10.6]} 89... Ra4 {[%clk 0:01:05.7]} 90. f4
{[%clk 0:02:11.9]} 90... Ra3+ {[%clk 0:01:06.2]} 91. Kg2 {[%clk 0:02:13.4]}
91... Ra4 {[%clk 0:01:02.7]} 92. Kf3 {[%clk 0:02:13.7]} 92... Ra3+ {[%clk
0:01:02.8]} 93. Kf2 {[%clk 0:02:14.4]} 93... Ra2+ {[%clk 0:01:00.8]} 94. Kf3
{[%clk 0:02:14.2]} 94... Ra3+ {[%clk 0:01:01.2]} 95. Ke4 {[%clk 0:02:15.6]}
95... Ra4+ {[%clk 0:01:02.2]} 96. Ke3 {[%clk 0:02:16.5]} 96... Ra3+ {[%clk
0:01:03.6]} 97. Kf2 {[%clk 0:02:11.8]} 97... Ra2+ {[%clk 0:01:03.9]} 98. Ke3
{[%clk 0:01:04.7]} 98... Ra3+ {[%clk 0:01:00.2]} 99. Ke4 {[%clk 0:01:02]} 99...
Ra4+ {[%clk 0:01:00.3]} 100. Ke3 {[%clk 0:01:00]} 100... Ra3+ {[%clk 0:01:01]}
101. Ke4 {[%clk 0:01:01.5]} 101... Ra4+ {[%clk 0:01:02]} 102. Kf3 {[%clk
0:01:02.3]} 102... Ra3+ {[%clk 0:01:02.8]} 103. Kf2 {[%clk 0:01:03.8]} 103...
Ra2+ {[%clk 0:01:03.7]} 104. Kg3 {[%clk 0:01:01.8]} 104... Ra3+ {[%clk
0:01:04.1]} 105. Kh2 {[%clk 0:01:02.9]} 105... Ra2+ {[%clk 0:01:05.4]} 106. Kh3
{[%clk 0:01:03.9]} 106... Ra3+ {[%clk 0:01:06.5]} 107. Kg2 {[%clk 0:01:05.5]}
107... Ra2+ {[%clk 0:01:06.9]} 108. Kf3 {[%clk 0:01:07.2]} 108... Ra3+ {[%clk
0:01:07.7]} 109. Kf2 {[%clk 0:01:08.9]} 109... Ra2+ {[%clk 0:01:08.7]} 110. Ke3
{[%clk 0:01:10.6]} 110... Ra3+ {[%clk 0:01:08.5]} 111. Ke2 {[%clk 0:01:12.2]}
111... Ra2+ {[%clk 0:01:07]} 112. Kd3 {[%clk 0:01:12.8]} 112... Ra3+ {[%clk
0:01:05]} 113. Kd2 {[%clk 0:01:08.8]} 113... Rf3 {[%clk 0:00:55.6]} 114. f5+
{[%clk 0:00:55.5]} 114... Rxf5 {[%clk 0:00:55.8]} 115. Rb4 {[%clk 0:00:57.2]}
115... Re5 {[%clk 0:00:56.6]} 116. Rf4 {[%clk 0:00:55.6]} 116... Kf7 {[%clk
0:00:49]} 117. Kd3 {[%clk 0:00:53.1]} 117... Ke6 {[%clk 0:00:50.2]} 118. Ra4
{[%clk 0:00:54.8]} 118... Kf5 {[%clk 0:00:49.3]} 119. Rc4 {[%clk 0:00:56.4]}
119... Re1 {[%clk 0:00:46.6]} 120. Rc6 {[%clk 0:00:50.3]} 120... Rh1 {[%clk
0:00:37.6]} 121. Rc4 {[%clk 0:00:49.5]} 121... Re1 {[%clk 0:00:38]} 122. Rc6
{[%clk 0:00:46.1]} 122... Re6 {[%clk 0:00:37.1]} 123. Rc4 {[%clk 0:00:46.2]}
123... Re5 {[%clk 0:00:37.5]} 124. Ra4 {[%clk 0:00:45.5]} 124... Rb5 {[%clk
0:00:33.9]} 125. Ke3 {[%clk 0:00:44.7]} 1/2-1/2

[Event "*** Titled Tuesday 3|2 Blitz"]
[Site "Chess.com"]
[Date "2015.12.01"]
[Round "9"]
[White "ethylalcohol"]
[Black "gumersindo"]
[Result "0-1"]
[WhiteElo "1855"]
[BlackElo "2195"]
[TimeControl "180+2"]
[EndTime "18:55:45 PST"]
[Termination "gumersindo won on time"]

1. e4 {[%clk 0:03:01.9]} 1... c5 {[%clk 0:03:00.8]} 2. Nc3 {[%clk 0:03:01.7]}
2... d6 {[%clk 0:03:00.3]} 3. g3 {[%clk 0:03:02.9]} 3... Nc6 {[%clk 0:03:01.8]}
4. Bg2 {[%clk 0:03:04.3]} 4... e6 {[%clk 0:03:02.7]} 5. Nge2 {[%clk 0:03:03.8]}
5... Nge7 {[%clk 0:03:04.1]} 6. O-O {[%clk 0:02:59.7]} 6... g6 {[%clk
0:03:05.6]} 7. d4 {[%clk 0:02:58.4]} 7... cxd4 {[%clk 0:03:04.6]} 8. Nxd4 {[%clk
0:02:59.3]} 8... Bg7 {[%clk 0:03:05.7]} 9. Be3 {[%clk 0:03:00]} 9... O-O {[%clk
0:03:06]} 10. Qd2 {[%clk 0:02:58.5]} 10... Ne5 {[%clk 0:03:03.6]} 11. b3 {[%clk
0:02:54.2]} 11... N7c6 {[%clk 0:02:57.1]} 12. Ndb5 {[%clk 0:02:41.7]} 12... Ng4
{[%clk 0:02:49]} 13. Rad1 {[%clk 0:02:27.4]} 13... Nxe3 {[%clk 0:02:43.5]} 14.
Qxe3 {[%clk 0:02:27.7]} 14... Qa5 {[%clk 0:02:37.4]} 15. Rd3 {[%clk 0:01:43.6]}
15... Nb4 {[%clk 0:02:27.4]} 16. Rxd6 {[%clk 0:01:36.4]} 16... Nxc2 {[%clk
0:02:17.2]} 17. Qd2 {[%clk 0:01:26.7]} 17... a6 {[%clk 0:01:59.2]} 18. Qxc2
{[%clk 0:01:07.4]} 18... axb5 {[%clk 0:01:58]} 19. a4 {[%clk 0:01:00.6]} 19...
Qxc3 {[%clk 0:01:54.8]} 20. Qb1 {[%clk 0:00:41.6]} 20... bxa4 {[%clk 0:01:54.2]}
21. bxa4 {[%clk 0:00:37.7]} 21... Rxa4 {[%clk 0:01:53.9]} 22. Qb5 {[%clk
0:00:33.1]} 22... Ra1 {[%clk 0:01:48.9]} 23. h4 {[%clk 0:00:27.7]} 23... Rxf1+
{[%clk 0:01:48.6]} 24. Bxf1 {[%clk 0:00:28.5]} 24... Bd4 {[%clk 0:01:46.9]} 25.
h5 {[%clk 0:00:16.5]} 25... Qxg3+ {[%clk 0:01:45.4]} 26. Kh1 {[%clk 0:00:11.9]}
26... Qh4+ {[%clk 0:01:44.7]} 0-1

[Event "*** Titled Tuesday 3|2 Blitz"]
[Site "Chess.com"]
[Date "2015.12.01"]
[Round "9"]
[White "Po6Don"]
[Black "Tirantes"]
[Result "1-0"]
[WhiteElo "2101"]
[BlackElo "2237"]
[TimeControl "180+2"]
[EndTime "18:56:22 PST"]
[Termination "Po6Don won by resignation"]

1. e4 {[%clk 0:03:01.9]} 1... c6 {[%clk 0:02:49.6]} 2. d4 {[%clk 0:02:59.4]}
2... d5 {[%clk 0:02:50.3]} 3. exd5 {[%clk 0:03:00.6]} 3... cxd5 {[%clk
0:02:50.9]} 4. c4 {[%clk 0:03:02.5]} 4... Nf6 {[%clk 0:02:49.7]} 5. Nc3 {[%clk
0:03:03.4]} 5... e6 {[%clk 0:02:50.2]} 6. Nf3 {[%clk 0:03:03.1]} 6... Be7 {[%clk
0:02:48.6]} 7. cxd5 {[%clk 0:03:03]} 7... Nxd5 {[%clk 0:02:48.1]} 8. Bd3 {[%clk
0:03:04.5]} 8... O-O {[%clk 0:02:47.9]} 9. O-O {[%clk 0:03:05.8]} 9... Nc6
{[%clk 0:02:48]} 10. Re1 {[%clk 0:03:06.7]} 10... Nxc3 {[%clk 0:02:40.8]} 11.
bxc3 {[%clk 0:03:07.4]} 11... b6 {[%clk 0:02:41.9]} 12. Qe2 {[%clk 0:03:01.5]}
12... Bb7 {[%clk 0:02:38.1]} 13. Qe4 {[%clk 0:02:58.1]} 13... g6 {[%clk
0:02:38.7]} 14. Bh6 {[%clk 0:02:59.1]} 14... Re8 {[%clk 0:02:35.8]} 15. h4
{[%clk 0:03:00.2]} 15... Na5 {[%clk 0:02:20]} 16. Qf4 {[%clk 0:02:57.5]} 16...
Bxf3 {[%clk 0:02:11.4]} 17. Qxf3 {[%clk 0:02:58.2]} 17... Bxh4 {[%clk 0:02:08]}
18. Bb5 {[%clk 0:02:54.4]} 18... Rc8 {[%clk 0:01:29.4]} 19. Bxe8 {[%clk
0:02:52.2]} 19... Qxe8 {[%clk 0:01:29.6]} 20. d5 {[%clk 0:02:44.3]} 20... e5
{[%clk 0:01:22.4]} 21. g3 {[%clk 0:02:42.9]} 21... Bd8 {[%clk 0:01:18.4]} 22.
Rad1 {[%clk 0:02:39.5]} 22... Nc4 {[%clk 0:01:10.3]} 23. d6 {[%clk 0:02:38.6]}
23... Qd7 {[%clk 0:01:02.1]} 24. Qe2 {[%clk 0:02:29.1]} 24... b5 {[%clk
0:00:57.9]} 25. Rd5 {[%clk 0:02:27.7]} 25... a6 {[%clk 0:00:49.7]} 26. Rxe5
{[%clk 0:02:10.6]} 26... Nxe5 {[%clk 0:00:41.1]} 27. Qxe5 {[%clk 0:02:12.5]}
27... f6 {[%clk 0:00:39.6]} 28. Qd5+ {[%clk 0:02:13.6]} 28... Kh8 {[%clk
0:00:34.7]} 29. Re7 {[%clk 0:02:02.7]} 29... Bxe7 {[%clk 0:00:29.4]} 30. Qf7
{[%clk 0:02:03.7]} 30... Rg8 {[%clk 0:00:27.1]} 31. dxe7 {[%clk 0:01:53.4]}
31... Qd1+ {[%clk 0:00:09.5]} 32. Kg2 {[%clk 0:01:47.3]} 32... Qd7 {[%clk
0:00:06.9]} 33. Qxf6+ {[%clk 0:01:35.9]} 1-0

[Event "*** Titled Tuesday 3|2 Blitz"]
[Site "Chess.com"]
[Date "2015.12.01"]
[Round "9"]
[White "Anton_Demchenko"]
[Black "HansCoolNiemann"]
[Result "0-1"]
[WhiteElo "2609"]
[BlackElo "2210"]
[TimeControl "180+2"]
[EndTime "18:56:24 PST"]
[Termination "HansCoolNiemann won by checkmate"]

1. e4 {[%clk 0:03:01.9]} 1... e6 {[%clk 0:02:58.2]} 2. d4 {[%clk 0:03:02.2]}
2... d5 {[%clk 0:02:57.1]} 3. Nc3 {[%clk 0:03:02.5]} 3... Nf6 {[%clk 0:02:57.9]}
4. e5 {[%clk 0:03:03.5]} 4... Nfd7 {[%clk 0:02:57]} 5. Nce2 {[%clk 0:03:05.4]}
5... c5 {[%clk 0:02:53.2]} 6. c3 {[%clk 0:03:07.3]} 6... Nc6 {[%clk 0:02:53.4]}
7. f4 {[%clk 0:03:07.9]} 7... Qb6 {[%clk 0:02:50.2]} 8. Nf3 {[%clk 0:03:08.7]}
8... cxd4 {[%clk 0:02:49.1]} 9. cxd4 {[%clk 0:03:09]} 9... Bb4+ {[%clk 0:02:49]}
10. Bd2 {[%clk 0:03:09.8]} 10... f6 {[%clk 0:02:49.2]} 11. Bxb4 {[%clk
0:03:07.5]} 11... Qxb4+ {[%clk 0:02:48.3]} 12. Qd2 {[%clk 0:03:08.7]} 12...
Qxd2+ {[%clk 0:02:48.5]} 13. Kxd2 {[%clk 0:03:10.4]} 13... fxe5 {[%clk
0:02:49.8]} 14. fxe5 {[%clk 0:02:57.4]} 14... O-O {[%clk 0:02:48.7]} 15. b3
{[%clk 0:02:54.2]} 15... a5 {[%clk 0:02:48.2]} 16. a4 {[%clk 0:02:47.2]} 16...
b6 {[%clk 0:02:46.2]} 17. Rc1 {[%clk 0:02:47.2]} 17... Bb7 {[%clk 0:02:44.6]}
18. Ke3 {[%clk 0:02:45.9]} 18... Rac8 {[%clk 0:02:42.5]} 19. g3 {[%clk 0:02:32]}
19... Rxf3+ {[%clk 0:02:29.5]} 20. Kxf3 {[%clk 0:02:30.2]} 20... Nxd4+ {[%clk
0:02:30.7]} 21. Ke3 {[%clk 0:01:21]} 21... Nf5+ {[%clk 0:02:28.3]} 22. Kd2
{[%clk 0:01:21.4]} 22... Nc5 {[%clk 0:02:22.9]} 23. Kc2 {[%clk 0:00:34.3]} 23...
d4 {[%clk 0:02:17.2]} 24. Rg1 {[%clk 0:00:26.9]} 24... Be4+ {[%clk 0:02:15.3]}
25. Kd1 {[%clk 0:00:17.1]} 25... Ne3+ {[%clk 0:02:13.1]} 26. Ke1 {[%clk
0:00:18.4]} 26... Nd3+ {[%clk 0:02:11.5]} 27. Kd2 {[%clk 0:00:19.8]} 27... Nxc1
{[%clk 0:02:12.5]} 28. Nxd4 {[%clk 0:00:21.2]} 28... Nc2 {[%clk 0:02:05.2]} 29.
Nxe6 {[%clk 0:00:09.4]} 29... Nxb3+ {[%clk 0:02:03.9]} 30. Kd1 {[%clk
0:00:10.7]} 30... Bf3+ {[%clk 0:02:00.7]} 31. Be2 {[%clk 0:00:10]} 31... Ncd4
{[%clk 0:01:36.4]} 32. Nxd4 {[%clk 0:00:06.7]} 32... Rc1# {[%clk 0:01:33.4]} 0-1

[Event "*** Titled Tuesday 3|2 Blitz"]
[Site "Chess.com"]
[Date "2015.12.01"]
[Round "9"]
[White "BellJackson95"]
[Black "Gabrielian_Artur"]
[Result "0-1"]
[WhiteElo "2195"]
[BlackElo "2455"]
[TimeControl "180+2"]
[EndTime "18:57:15 PST"]
[Termination "Gabrielian_Artur won on time"]

1. e4 {[%clk 0:03:01.9]} 1... c5 {[%clk 0:02:59.6]} 2. Nf3 {[%clk 0:02:58.9]}
2... e6 {[%clk 0:02:59.6]} 3. d4 {[%clk 0:02:59.2]} 3... cxd4 {[%clk 0:03:01]}
4. Nxd4 {[%clk 0:03:01.1]} 4... Nf6 {[%clk 0:03:02.1]} 5. Nc3 {[%clk 0:03:01.5]}
5... d6 {[%clk 0:03:03.6]} 6. Be2 {[%clk 0:02:59.1]} 6... a6 {[%clk 0:03:04.4]}
7. a4 {[%clk 0:02:59.1]} 7... Nbd7 {[%clk 0:03:00.5]} 8. O-O {[%clk 0:02:59.1]}
8... b6 {[%clk 0:03:01.5]} 9. f4 {[%clk 0:02:47.4]} 9... Bb7 {[%clk 0:03:01.8]}
10. Bf3 {[%clk 0:02:48]} 10... Qc7 {[%clk 0:03:02.6]} 11. Re1 {[%clk 0:02:41.4]}
11... Rc8 {[%clk 0:02:59.1]} 12. Be3 {[%clk 0:02:31.2]} 12... Be7 {[%clk
0:02:58.8]} 13. Bf2 {[%clk 0:02:30.2]} 13... h5 {[%clk 0:02:58.6]} 14. g3 {[%clk
0:02:23.4]} 14... g6 {[%clk 0:02:55.1]} 15. h3 {[%clk 0:02:10.5]} 15... e5
{[%clk 0:02:55.5]} 16. Nb3 {[%clk 0:02:05.4]} 16... h4 {[%clk 0:02:54.2]} 17.
gxh4 {[%clk 0:01:54.8]} 17... exf4 {[%clk 0:02:54.7]} 18. Rc1 {[%clk 0:01:46.2]}
18... Ne5 {[%clk 0:02:55.4]} 19. Bd4 {[%clk 0:01:37.6]} 19... Rxh4 {[%clk
0:02:51.6]} 20. Kg2 {[%clk 0:01:35.7]} 20... Qd7 {[%clk 0:02:46.2]} 21. Rh1
{[%clk 0:01:32.1]} 21... Rxc3 {[%clk 0:02:32.4]} 22. Bxc3 {[%clk 0:01:20]} 22...
Nxf3 {[%clk 0:02:30.3]} 23. Kxf3 {[%clk 0:01:20.5]} 23... Bxe4+ {[%clk
0:02:30.3]} 24. Kf2 {[%clk 0:01:20.4]} 24... Bxh1 {[%clk 0:02:29.2]} 25. Qxh1
{[%clk 0:01:22.3]} 25... d5 {[%clk 0:01:57]} 26. Bxf6 {[%clk 0:00:38]} 26...
Bxf6 {[%clk 0:01:49.4]} 27. Kg2 {[%clk 0:00:39.9]} 27... Qxa4 {[%clk 0:01:44.4]}
28. Qe1+ {[%clk 0:00:27.6]} 28... Qe4+ {[%clk 0:01:43.9]} 29. Kh2 {[%clk
0:00:26.9]} 29... Kf8 {[%clk 0:01:39]} 30. Qf2 {[%clk 0:00:18.6]} 30... Qf5
{[%clk 0:01:33.7]} 31. Qf3 {[%clk 0:00:17.2]} 31... Kg7 {[%clk 0:01:34.3]} 32.
Rd1 {[%clk 0:00:17]} 32... Qxc2+ {[%clk 0:01:34.3]} 33. Nd2 {[%clk 0:00:17.1]}
33... Qxb2 {[%clk 0:01:33.8]} 34. Qxd5 {[%clk 0:00:16.5]} 34... Rh5 {[%clk
0:01:30.9]} 35. Qf3 {[%clk 0:00:07.8]} 35... Re5 {[%clk 0:01:30.9]} 36. Kh1
{[%clk 0:00:07.3]} 36... Re3 {[%clk 0:01:30]} 37. Qg2 {[%clk 0:00:06.2]} 37...
Rg3 {[%clk 0:01:30.1]} 38. Qf1 {[%clk 0:00:05]} 38... Qc2 {[%clk 0:01:28.8]} 0-1